[Event "4NCL Div 1 2024-25"]
[Site "England"]
[Date "2025.04.06"]
[Round "8.21"]
[White "Hryshchenko, Kamila"]
[Black "Berry, Neil"]
[Result "1/2-1/2"]
[Annotator "ChessBase"]
[ECO "C90"]
[WhiteElo "2138"]
[BlackElo "2248"]
[PlyCount "140"]
[EventDate "2024.11.23"]
[EventType "team-tourn"]
[EventCountry "ENG"]
[SourceTitle "playchess.com"]
[Source "ChessBase"]
[SourceQuality "1"]
[TimeControl "40/6000+30:3000+30"]

1. e4 {[%emt 0:10:03]} e5 {[%emt 0:10:50]} 2. Nf3 {[%emt 0:00:06]} Nc6 {[%emt 0:00:18]} 3. Bb5 {[%emt 0:00:06]} a6 {[%emt 0:00:24]} 4. Ba4 {[%emt 0:00:05]} Nf6 {[%emt 0:00:13]} 5. O-O {[%emt 0:00:21]} Be7 {[%emt 0:00:24]} 6. Re1 {[%emt 0:00:09]} b5 {[%emt 0:02:02]} 7. Bb3 {[%emt 0:00:05]} d6 {[%emt 0:00:26]} 8. c3 {[%emt 0:00:59]} O-O {[%emt 0:00:19]} 9. d3 {[%emt 0:00:07]} Na5 {[%emt 0:05:16]} 10. Bc2 {[%emt 0:00:08]} c5 {[%emt 0:00:15]} 11. Nbd2 {[%emt 0:00:11]} Re8 {[%emt 0:04:29]} 12. Nf1 {[%emt 0:00:17]} h6 {[%emt 0:00:35]} 13. h3 {[%emt 0:03:31]} Bf8 {[%emt 0:00:55]} 14. Ng3 {[%emt 0:03:01]} Nc6 {[%emt 0:04:00]} 15. d4 {[%emt 0:04:02]} cxd4 {[%emt 0:21:27]} 16. cxd4 {[%emt 0:00:22]} exd4 {[%emt 0:01:13]} 17. Nxd4 {[%emt 0:03:55]} Nxd4 {[%emt 0:00:24]} 18. Qxd4 {[%emt 0:00:08]} Be6 {[%emt 0:00:27]} 19. b3 {[%emt 0:03:59]} Rc8 {[%emt 0:01:03]} 20. Bd3 {[%emt 0:01:31]} Nd7 {[%emt 0:15:51]} 21. Bb2 {[%emt 0:02:04]} Ne5 {[%emt 0:01:43]} 22. Be2 {[%emt 0:01:49]} Rc2 {[%emt 0:16:19]} 23. Bc3 {[%emt 0:12:18]} Qc7 {[%emt 0:13:35]} 24. Rec1 {[%emt 0:01:27]} Rxc1+ {[%emt 0:00:46]} 25. Rxc1 {[%emt 0:00:09]} Rc8 {[%emt 0:03:17]} 26. Bd2 {[%emt 0:01:53]} Qb7 {[%emt 0:01:23]} 27. Rxc8 {[%emt 0:00:47]} Qxc8 {[%emt 0:00:41]} 28. f4 {[%emt 0:02:05]} Nc6 {[%emt 0:00:12]} 29. Qd3 {[%emt 0:01:05]} Qd8 {[%emt 0:01:43]} 30. Nh5 {[%emt 0:03:05]} Bd7 {[%emt 0:01:50]} 31. Qg3 {[%emt 0:01:25]} Nd4 {[%emt 0:02:28]} 32. Bd3 {[%emt 0:00:41]} d5 {[%emt 0:01:05]} 33. Be3 {[%emt 0:10:12]} Nc6 {[%emt 0:00:16]} 34. e5 {[%emt 0:02:50]} Ne7 {[%emt 0:00:44]} 35. e6 {[%emt 0:14:16]} fxe6 {[%emt 0:00:04]} 36. Bd4 {[%emt 0:00:22]} Nf5 {[%emt 0:00:41]} 37. Bxf5 {[%emt 0:00:24]} exf5 {[%emt 0:00:02]} 38. Nxg7 {[%emt 0:03:43]} Kf7 {[%emt 0:00:34]} 39. Nh5 {[%emt 0:00:45]} Qe7 {[%emt 0:00:45]} 40. Be5 {[%emt 0:02:18]} Be6 {[%emt 0:00:49]} 41. Kh2 {[%emt 0:52:12]} Ke8 {[%emt 0:29:32]} 42. Nf6+ {[%emt 0:00:00]} Kd8 {[%emt 0:00:19]} 43. Qc3 {[%emt 0:00:00]} Qb7 {[%emt 0:01:59]} 44. Qa5+ {[%emt 0:00:00]} Ke7 {[%emt 0:03:55]} 45. Nh7 {[%emt 0:00:00]} Qc8 {[%emt 0:04:06]} 46. Qa3+ {[%emt 0:00:00]} Kf7 {[%emt 0:00:47]} 47. Nxf8 {[%emt 0:00:00]} Qxf8 {[%emt 0:00:06]} 48. Qxa6 {[%emt 0:00:00]} Qe8 {[%emt 0:00:57]} 49. a4 {[%emt 0:00:00]} bxa4 {[%emt 0:00:27]} 50. bxa4 {[%emt 0:00:00]} Qd7 {[%emt 0:02:39]} 51. a5 {[%emt 0:00:00]} d4 {[%emt 0:00:35]} 52. Qd3 {[%emt 0:00:00]} Qd5 {[%emt 0:00:43]} 53. a6 {[%emt 0:00:00]} Qc4 {[%emt 0:01:58]} 54. Qxc4 {[%emt 0:00:00]} Bxc4 {[%emt 0:00:05]} 55. a7 {[%emt 0:00:00]} Bd5 {[%emt 0:00:04]} 56. Bxd4 {[%emt 0:00:00]} h5 {[%emt 0:00:18]} 57. Kg3 {[%emt 0:00:00]} Kg6 {[%emt 0:01:30]} 58. Be5 {[%emt 0:00:00]} Bb7 {[%emt 0:03:07]} 59. Kf2 {[%emt 0:00:00]} Kf7 {[%emt 0:00:11]} 60. Ke3 {[%emt 0:00:00]} Bxg2 {[%emt 0:01:24]} 61. Kd4 {[%emt 0:00:00]} Ke6 {[%emt 0:00:11]} 62. Kd3 {[%emt 0:05:17]} Be4+ {[%emt 0:00:12]} 63. Ke3 {[%emt 0:00:10]} Bb7 {[%emt 0:00:23]} 64. Bb8 {[%emt 0:00:11]} Bh1 {[%emt 0:00:54]} 65. Kf2 {[%emt 0:00:18]} Be4 {[%emt 0:00:25]} 66. Ke1 {[%emt 0:00:33]} Kd7 {[%emt 0:00:56]} 67. Kd2 {[%emt 0:00:10]} Bg2 {[%emt 0:00:50]} 68. Ke3 {[%emt 0:00:08]} Ke6 {[%emt 0:00:22]} 69. Kd4 {[%emt 0:00:14]} Bh1 {[%emt 0:00:21]} 70. Kc5 {[%emt 0:00:03]} Kd7 {[%emt 0:00:10]} 1/2-1/2

[Event "4NCL Div 1 2024-25"]
[Site "England"]
[Date "2025.04.06"]
[Round "8.22"]
[White "Shafi, Declan"]
[Black "Onslow, Alfie"]
[Result "1-0"]
[Annotator "ChessBase"]
[ECO "B15"]
[WhiteElo "2181"]
[BlackElo "2170"]
[PlyCount "153"]
[EventDate "2024.11.23"]
[EventType "team-tourn"]
[EventCountry "ENG"]
[SourceTitle "playchess.com"]
[Source "ChessBase"]
[SourceQuality "1"]
[TimeControl "40/6000+30:3000+30"]

1. e4 {[%emt 0:10:29]} g6 {[%emt 0:10:40]} 2. d4 {[%emt 0:00:07]} Bg7 {[%emt 0:00:05]} 3. Nc3 {[%emt 0:00:09]} c6 {[%emt 0:00:06]} 4. f4 {[%emt 0:00:17]} d5 {[%emt 0:00:13]} 5. e5 {[%emt 0:01:02]} h5 {[%emt 0:00:35]} 6. Nf3 {[%emt 0:01:02]} Nh6 {[%emt 0:01:18]} 7. Be3 {[%emt 0:00:58]} Bg4 {[%emt 0:01:13]} 8. Bd3 {[%emt 0:00:23]} e6 {[%emt 0:01:16]} 9. h3 {[%emt 0:02:08]} Bxf3 {[%emt 0:00:17]} 10. Qxf3 {[%emt 0:00:08]} Nf5 {[%emt 0:00:11]} 11. Bf2 {[%emt 0:00:14]} h4 {[%emt 0:00:27]} 12. O-O {[%emt 0:02:48]} a5 {[%emt 0:01:38]} 13. Ne2 {[%emt 0:02:11]} Na6 {[%emt 0:02:48]} 14. c3 {[%emt 0:01:28]} Bf8 {[%emt 0:02:55]} 15. Kh2 {[%emt 0:04:47]} Be7 {[%emt 0:02:47]} 16. Ng1 {[%emt 0:01:33]} Nc7 {[%emt 0:07:25]} 17. Qe2 {[%emt 0:00:44]} b6 {[%emt 0:05:03]} 18. Nf3 {[%emt 0:05:37]} Kf8 {[%emt 0:04:21]} 19. Rac1 {[%emt 0:08:50]} c5 {[%emt 0:07:13]} 20. b3 {[%emt 0:06:43]} a4 {[%emt 0:17:34]} 21. Rfd1 {[%emt 0:00:56]} Kg8 {[%emt 0:07:36]} 22. Qe1 {[%emt 0:09:25]} axb3 {[%emt 0:04:07]} 23. axb3 {[%emt 0:00:05]} Ra3 {[%emt 0:00:50]} 24. Bc2 {[%emt 0:10:41]} c4 {[%emt 0:03:32]} 25. Rb1 {[%emt 0:14:25]} b5 {[%emt 0:05:46]} 26. b4 {[%emt 0:03:59]} Ra2 {[%emt 0:10:17]} 27. Rdc1 {[%emt 0:01:16]} Qa8 {[%emt 0:06:51]} 28. Ra1 {[%emt 0:05:01]} Bf8 {[%emt 0:01:10]} 29. Bxf5 {[%emt 0:08:24]} exf5 {[%emt 0:00:14]} 30. Rxa2 {[%emt 0:00:40]} Qxa2 {[%emt 0:00:06]} 31. Ra1 {[%emt 0:00:08]} Qb2 {[%emt 0:01:14]} 32. Ng5 {[%emt 0:01:16]} Be7 {[%emt 0:01:52]} 33. Ra5 {[%emt 0:05:36]} Bxg5 {[%emt 0:02:51]} 34. fxg5 {[%emt 0:00:01]} Ne6 {[%emt 0:01:21]} 35. Rxb5 {[%emt 0:01:21]} Rh5 {[%emt 0:01:02]} 36. Bxh4 {[%emt 0:01:12]} Nxg5 {[%emt 0:00:48]} 37. Qg3 {[%emt 0:00:39]} Ne4 {[%emt 0:00:31]} 38. Rb8+ {[%emt 0:00:24]} Kh7 {[%emt 0:00:34]} 39. Bf6 {[%emt 0:00:26]} g5 {[%emt 0:00:12]} 40. Rh8+ {[%emt 0:01:37]} Kg6 {[%emt 0:00:01]} 41. Rg8+ {[%emt 0:22:08]} Kh7 {[%emt 0:39:23]} 42. Rg7+ {[%emt 0:01:41]} Kh6 {[%emt 0:01:04]} 43. Qf3 {[%emt 0:01:09]} g4 {[%emt 0:02:41]} 44. Qe3+ {[%emt 0:05:53]} Ng5 {[%emt 0:00:31]} 45. h4 {[%emt 0:03:55]} Rxh4+ {[%emt 0:06:53]} 46. Kg3 {[%emt 0:00:09]} f4+ {[%emt 0:03:14]} 47. Qxf4 {[%emt 0:01:26]} Rh3+ {[%emt 0:00:22]} 48. gxh3 {[%emt 0:00:13]} Qxc3+ {[%emt 0:00:15]} 49. Kh2 {[%emt 0:01:32]} Qc2+ {[%emt 0:00:15]} 50. Kg1 {[%emt 0:00:37]} Qd1+ {[%emt 0:00:16]} 51. Kf2 {[%emt 0:00:35]} Qc2+ {[%emt 0:01:32]} 52. Ke1 {[%emt 0:00:38]} Qb1+ {[%emt 0:00:18]} 53. Ke2 {[%emt 0:00:30]} Qd3+ {[%emt 0:00:08]} 54. Ke1 {[%emt 0:00:29]} Qb1+ {[%emt 0:00:13]} 55. Kd2 {[%emt 0:00:31]} Qd3+ {[%emt 0:00:53]} 56. Kc1 {[%emt 0:00:13]} Qc3+ {[%emt 0:00:08]} 57. Kd1 {[%emt 0:00:09]} Qb3+ {[%emt 0:00:05]} 58. Ke2 {[%emt 0:01:08]} Qd3+ {[%emt 0:00:06]} 59. Kf2 {[%emt 0:00:33]} Qc2+ {[%emt 0:00:33]} 60. Kg1 {[%emt 0:02:19]} Qd1+ {[%emt 0:00:13]} 61. Qf1 {[%emt 0:04:35]} Qxd4+ {[%emt 0:01:47]} 62. Kh2 {[%emt 0:01:29]} Qd2+ {[%emt 0:00:40]} 63. Kg3 {[%emt 0:01:18]} Qe3+ {[%emt 0:00:55]} 64. Kxg4 {[%emt 0:00:54]} Qe4+ {[%emt 0:00:30]} 65. Kg3 {[%emt 0:00:58]} Qe3+ {[%emt 0:00:28]} 66. Kh2 {[%emt 0:02:01]} Nf3+ {[%emt 0:00:12]} 67. Kh1 {[%emt 0:00:41]} c3 {[%emt 0:00:51]} 68. Rg2 {[%emt 0:01:50]} Qe4 {[%emt 0:00:32]} 69. Qc1+ {[%emt 0:01:39]} Kh5 {[%emt 0:00:02]} 70. Rg4 {[%emt 0:00:51]} Qf5 {[%emt 0:00:57]} 71. Qxc3 {[%emt 0:01:45]} Qb1+ {[%emt 0:00:28]} 72. Kg2 {[%emt 0:00:11]} Ne1+ {[%emt 0:00:33]} 73. Kg3 {[%emt 0:00:37]} Nd3 {[%emt 0:00:02]} 74. Qd2 {[%emt 0:00:52]} Qg1+ {[%emt 0:00:36]} 75. Qg2 {[%emt 0:00:19]} Qe3+ {[%emt 0:00:45]} 76. Kh2 {[%emt 0:00:09]} Ne1 {[%emt 0:00:14]} 77. Rh4# {[%emt 0:00:41]} 1-0

[Event "4NCL Div 1 2024-25"]
[Site "England"]
[Date "2025.04.06"]
[Round "8.23"]
[White "Price, Gwilym"]
[Black "McKay, Roderick M"]
[Result "1/2-1/2"]
[Annotator "ChessBase"]
[ECO "B56"]
[WhiteElo "2223"]
[BlackElo "2177"]
[PlyCount "84"]
[EventDate "2024.11.23"]
[EventType "team-tourn"]
[EventCountry "ENG"]
[SourceTitle "playchess.com"]
[Source "ChessBase"]
[SourceQuality "1"]
[TimeControl "40/6000+30:3000+30"]

1. e4 {[%emt 0:10:03]} c5 {[%emt 0:10:43]} 2. Nf3 {[%emt 0:00:04]} d6 {[%emt 0:00:26]} 3. d4 {[%emt 0:00:04]} cxd4 {[%emt 0:00:49]} 4. Nxd4 {[%emt 0:00:06]} Nf6 {[%emt 0:00:23]} 5. Nc3 {[%emt 0:00:06]} e5 {[%emt 0:00:17]} 6. Bb5+ {[%emt 0:00:16]} Bd7 {[%emt 0:00:10]} 7. Bxd7+ {[%emt 0:00:06]} Qxd7 {[%emt 0:00:10]} 8. Nde2 {[%emt 0:00:17]} h6 {[%emt 0:00:59]} 9. O-O {[%emt 0:01:59]} Be7 {[%emt 0:00:16]} 10. Ng3 {[%emt 0:00:32]} Nc6 {[%emt 0:05:03]} 11. Nh5 {[%emt 0:12:39]} Nxh5 {[%emt 0:17:00]} 12. Qxh5 {[%emt 0:00:13]} Qe6 {[%emt 0:03:27]} 13. Nd5 {[%emt 0:07:27]} Rc8 {[%emt 0:03:23]} 14. c3 {[%emt 0:05:40]} O-O {[%emt 0:03:39]} 15. Be3 {[%emt 0:04:29]} f5 {[%emt 0:01:02]} 16. Qh3 {[%emt 0:01:23]} Bd8 {[%emt 0:04:53]} 17. Rfd1 {[%emt 0:06:20]} b6 {[%emt 0:05:58]} 18. a4 {[%emt 0:03:43]} Na5 {[%emt 0:06:42]} 19. Rd3 {[%emt 0:04:28]} Qg6 {[%emt 0:05:56]} 20. exf5 {[%emt 0:03:47]} Qxf5 {[%emt 0:05:27]} 21. Qxf5 {[%emt 0:01:11]} Rxf5 {[%emt 0:00:08]} 22. Rad1 {[%emt 0:02:44]} Rc4 {[%emt 0:05:32]} 23. b4 {[%emt 0:09:23]} Nc6 {[%emt 0:00:33]} 24. Bc1 {[%emt 0:01:21]} e4 {[%emt 0:05:18]} 25. Ne3 {[%emt 0:07:32]} exd3 {[%emt 0:00:23]} 26. Nxc4 {[%emt 0:00:10]} Ne5 {[%emt 0:05:56]} 27. Nxe5 {[%emt 0:00:42]} Rxe5 {[%emt 0:00:23]} 28. Be3 {[%emt 0:00:14]} Bg5 {[%emt 0:01:29]} 29. Rxd3 {[%emt 0:08:59]} Bxe3 {[%emt 0:00:11]} 30. fxe3 {[%emt 0:00:23]} Kf7 {[%emt 0:02:12]} 31. Rxd6 {[%emt 0:04:22]} Rxe3 {[%emt 0:00:11]} 32. Rd7+ {[%emt 0:00:03]} Kg8 {[%emt 0:00:19]} 33. Rc7 {[%emt 0:03:56]} a5 {[%emt 0:02:19]} 34. Kf2 {[%emt 0:01:49]} Re4 {[%emt 0:00:15]} 35. Kf3 {[%emt 0:01:44]} Rh4 {[%emt 0:00:31]} 36. bxa5 {[%emt 0:03:36]} bxa5 {[%emt 0:00:30]} 37. c4 {[%emt 0:00:17]} Rxh2 {[%emt 0:00:44]} 38. Rc5 {[%emt 0:00:29]} Rh4 {[%emt 0:02:44]} 39. g3 {[%emt 0:05:26]} Rd4 {[%emt 0:00:33]} 40. Ke3 {[%emt 0:00:04]} Rg4 {[%emt 0:00:20]} 41. Kf3 {[%emt 0:50:41]} Rd4 {[%emt 0:50:52]} 42. Ke3 {[%emt 0:00:04]} Rg4 {[%emt 0:12:36]} 1/2-1/2

[Event "4NCL Div 1 2024-25"]
[Site "England"]
[Date "2025.04.06"]
[Round "8.25"]
[White "Golding, Alex"]
[Black "Parker, Jonathan F"]
[Result "1/2-1/2"]
[Annotator "TA"]
[ECO "B06"]
[WhiteElo "2404"]
[BlackElo "2523"]
[PlyCount "132"]
[EventDate "2024.11.23"]
[EventType "team-tourn"]
[EventCountry "ENG"]
[SourceTitle "playchess.com"]
[Source "ChessBase"]
[SourceQuality "1"]
[TimeControl "40/6000+30:3000+30"]

{[%evp 9,132,13,22,22,21,4,0,-11,18,-9,3,-2,0,8,14,7,10,0,0,0,12,0,0,0,4,0,0,0,4,6,12,5,8,16,19,21,33,4,10,2,8,2,6,0,0,0,25,10,29,6,25,32,46,40,58,58,52,57,57,57,58,57,57,57,61,54,61,54,58,55,83,54,83,83,83,83,83,54,83,83,110,83,83,83,83,13,13,13,14,16,14,14,25,12,11,11,46,47,42,44,37,46,44,47,58,21,28,35,25,21,81,83,92,35,50,8,8,8,9,9,9,9,9,0,0]} 1. d4 {[%emt 0:10:16]} Nf6 {[%emt 0:13:51]} 2. c3 {[%emt 0:00:51]} g6 {[%emt 0:01:47]} 3. Bg5 {[%emt 0:02:42]} Bg7 {[%emt 0:00:07]} 4. Nd2 {[%emt 0:00:21]} d6 {[%emt 0:02:25]} 5. e4 {[%emt 0:01:12]} h6 {[%emt 0:07:56]} 6. Bh4 {[%emt 0:01:59] B06: Modern Defence.} c5 {[%emt 0:09:14]} 7. dxc5 {[%emt 0:13:19]} dxc5 {[%emt 0:00:09]} 8. Bb5+ $146 {[%emt 0:03:23]} (8. Ngf3 O-O 9. Qc2 Nc6 10. Rd1 Be6 11. Bc4 Qc8 12. O-O Bxc4 13. Nxc4 Qe6 14. Nfd2 Rad8 15. a4 Nh5 16. Ne3 Nf4 {½-½ Fedorov,A (2477)-Harsh,S (2261) Indore op 1st 2023 (6)}) 8... Bd7 {[%emt 0:02:31]} 9. Bxf6 {[%emt 0:03:41]} Bxf6 {[%emt 0:00:50]} 10. Bxd7+ {[%emt 0:00:19]} Qxd7 {[%emt 0:03:34]} 11. Qe2 {[%emt 0:01:28]} Nc6 {[%emt 0:01:00]} 12. Ngf3 {[%emt 0:00:19]} Rd8 {[%emt 0:06:29]} 13. Rd1 {[%emt 0:05:52]} Qc7 {[%emt 0:08:32]} 14. O-O {[%emt 0:00:40][%cal Be1g1,Bg1g2,Bg2f1][%mdl 32]} Bg7 {[%emt 0:00:45]} 15. Nb3 {[%emt 0:04:28]} Rxd1 {[%emt 0:02:44]} 16. Rxd1 {[%emt 0:00:07]} b6 {[%emt 0:00:06]} 17. g3 {[%emt 0:07:38] Not much happening anymore} O-O {[%emt 0:00:21]} 18. Kg2 {[%emt 0:00:56]} Rd8 {[%emt 0:03:19]} 19. Rxd8+ {[%emt 0:00:49]} Nxd8 {[%emt 0:04:08]} 20. Qb5 {[%emt 0:02:05]} Kf8 {[%emt 0:00:42][%cal Bg8f8,Bf8e8,Be8d7][%mdl 32]} 21. Nbd2 {[%emt 0:03:47]} Qc6 {[%emt 0:09:23]} 22. Qxc6 {[%emt 0:03:28]} Nxc6 $11 {[%emt 0:00:04][%mdl 4096] Endgame KBN-KNN} 23. Kf1 {[%emt 0:01:10]} Ke8 {[%emt 0:00:45]} 24. Ke2 {[%emt 0:00:21]} Kd7 {[%emt 0:00:05]} 25. Ne1 {[%emt 0:05:09]} b5 {[%emt 0:08:20]} 26. Nc2 {[%emt 0:02:24]} e6 {[%emt 0:02:39]} 27. f4 {[%emt 0:15:03]} Bf8 {[%emt 0:01:02]} 28. b3 {[%emt 0:00:34]} a6 {[%emt 0:02:15]} 29. Ne3 {[%emt 0:02:31]} Be7 {[%emt 0:00:28]} 30. e5 {[%emt 0:02:00]} h5 {[%emt 0:01:58]} 31. Ne4 {[%emt 0:01:44]} Nd8 {[%emt 0:02:37]} 32. Kd3 {[%emt 0:00:18]} Nc6 {[%emt 0:00:17]} 33. Nf1 {[%emt 0:06:10]} Na5 {[%emt 0:07:53]} 34. Nfd2 {[%emt 0:00:42]} Nc6 {[%emt 0:03:59]} 35. Nf3 {[%emt 0:01:09]} Nd8 {[%emt 0:00:32]} 36. Nfg5 {[%emt 0:04:44]} Kc6 {[%emt 0:01:51]} 37. c4 {[%emt 0:00:16]} b4 {[%emt 0:00:44]} 38. Nh7 {[%emt 0:00:47]} Kc7 {[%emt 0:01:28]} 39. Nhf6 {[%emt 0:00:14]} Kc6 {[%emt 0:02:14]} 40. Ke3 {[%emt 0:02:50] White is more active.} a5 {[%emt 0:00:36]} 41. Ng8 {[%emt 0:25:39] A dynamic duo of knights.} Bf8 {[%emt 0:20:11]} 42. Nef6 {[%emt 0:01:08]} Nb7 {[%emt 0:01:47]} 43. Ke4 {[%emt 0:00:31]} Kc7 {[%emt 0:03:28]} 44. h3 {[%emt 0:00:40]} Kd8 {[%emt 0:05:04]} 45. g4 {[%emt 0:00:21]} hxg4 {[%emt 0:00:51]} 46. hxg4 {[%emt 0:00:05]} Bg7 {[%emt 0:02:46]} 47. f5 {[%emt 0:00:41]} (47. Kd3 $16) 47... gxf5+ {[%emt 0:01:36]} 48. gxf5 {[%emt 0:00:06]} exf5+ {[%emt 0:11:26]} 49. Kxf5 {[%emt 0:00:07] [#]} a4 $1 {[%emt 0:00:02]} 50. bxa4 {[%emt 0:03:36]} Na5 {[%emt 0:00:05]} 51. Ke4 {[%emt 0:00:29]} Nxc4 {[%emt 0:00:22]} 52. Kd5 {[%emt 0:00:19][%csl LRc4,LRc5]} Nb6+ {[%emt 0:00:50]} (52... Nxe5 $5 53. Kxe5 Kc7 $16) 53. Kxc5 {[%emt 0:00:05]} Nxa4+ {[%emt 0:00:03]} 54. Kxb4 {[%emt 0:00:07]} Nb2 {[%emt 0:01:21]} 55. Kc3 {[%emt 0:00:16]} Na4+ {[%emt 0:01:23]} 56. Kd4 {[%emt 0:00:06]} Bf8 {[%emt 0:01:18]} 57. Ne4 {[%emt 0:00:13]} Kd7 {[%emt 0:03:56]} 58. Ngf6+ {[%emt 0:01:27]} Ke6 {[%emt 0:01:02]} 59. Ng5+ {[%emt 0:00:21]} Ke7 {[%emt 0:00:06]} (59... Kf5 $1 $11) 60. Nd5+ $16 {[%emt 0:02:39]} Ke8 {[%emt 0:00:20]} 61. Ne4 {[%emt 0:00:10]} ({White should try} 61. Nh7 $16) 61... Kd7 $14 {[%emt 0:00:44]} 62. Ndc3 {[%emt 0:01:08]} Nxc3 {[%emt 0:02:22] The position is equal.} 63. Nxc3 {[%emt 0:00:27]} Ke6 {[%emt 0:00:38]} 64. Ne4 {[%emt 0:00:15] [#]} Bg7 {[%emt 0:00:06]} 65. Ng5+ {[%emt 0:00:57]} Ke7 {[%emt 0:00:18]} 66. Kd5 {[%emt 0:02:17] Ne4 would now be deadly.} Bxe5 $1 {[%emt 0:00:12] Weighted Error Value: White=0.09 (flawless) /Black=0.08 (flawless)   Mistake:       	White=2     	Black=1      Inaccurate:     	White=6     	Black=6      OK:         	White=20    	Black=12     Best:        	White=1     	Black=8      Strong:       	---       	Black=2} 1/2-1/2

[Event "4NCL Div 1 2024-25"]
[Site "England"]
[Date "2025.04.06"]
[Round "8.26"]
[White "Panjwani, Raja"]
[Black "Czopor, Maciej"]
[Result "1/2-1/2"]
[Annotator "ChessBase"]
[ECO "B45"]
[WhiteElo "2448"]
[BlackElo "2383"]
[PlyCount "60"]
[EventDate "2024.11.23"]
[EventType "team-tourn"]
[EventCountry "ENG"]
[SourceTitle "playchess.com"]
[Source "ChessBase"]
[SourceQuality "1"]
[TimeControl "40/6000+30:3000+30"]

1. e4 {[%emt 0:10:05]} c5 {[%emt 0:11:09]} 2. Nf3 {[%emt 0:00:03]} e6 {[%emt 0:00:05]} 3. d4 {[%emt 0:00:06]} cxd4 {[%emt 0:00:04]} 4. Nxd4 {[%emt 0:00:07]} Nf6 {[%emt 0:00:05]} 5. Nc3 {[%emt 0:00:09]} Nc6 {[%emt 0:00:04]} 6. Nxc6 {[%emt 0:00:12]} bxc6 {[%emt 0:00:07]} 7. e5 {[%emt 0:00:05]} Nd5 {[%emt 0:00:05]} 8. Ne4 {[%emt 0:00:09]} Qc7 {[%emt 0:00:06]} 9. f4 {[%emt 0:00:06]} f5 {[%emt 0:00:03]} 10. exf6 {[%emt 0:00:10]} gxf6 {[%emt 0:00:03]} 11. Bd2 {[%emt 0:00:09]} Be7 {[%emt 0:00:20]} 12. Qf3 {[%emt 0:25:04]} Qb6 {[%emt 0:29:40]} 13. c4 {[%emt 0:20:48]} Qxb2 {[%emt 0:05:36]} 14. Rd1 {[%emt 0:00:51]} Nb4 {[%emt 0:10:11]} 15. Qh5+ {[%emt 0:03:39]} Kd8 {[%emt 0:07:59]} 16. Qa5+ {[%emt 0:00:46]} Ke8 {[%emt 0:00:01]} 17. Qh5+ {[%emt 0:05:01]} Kd8 {[%emt 0:00:05]} 18. Qa5+ {[%emt 0:10:53]} Ke8 {[%emt 0:00:05]} 19. Be2 {[%emt 0:02:48]} Nc2+ {[%emt 0:18:14]} 20. Kf1 {[%emt 0:00:08]} d5 {[%emt 0:00:44]} 21. Bh5+ {[%emt 0:02:29]} Kd7 {[%emt 0:05:05]} 22. f5 {[%emt 0:04:41]} exf5 {[%emt 0:00:24]} 23. Bf4 {[%emt 0:05:48]} Ne3+ {[%emt 0:02:55]} 24. Bxe3 {[%emt 0:00:06]} fxe4 {[%emt 0:00:08]} 25. Qa4 {[%emt 0:06:12]} Qb4 {[%emt 0:04:54]} 26. Bg4+ {[%emt 0:01:22]} Kc7 {[%emt 0:00:32]} 27. Bf4+ {[%emt 0:00:31]} Kb6 {[%emt 0:00:22]} 28. Be3+ {[%emt 0:01:33]} Kc7 {[%emt 0:01:24]} 29. Bf4+ {[%emt 0:00:36]} Kb6 {[%emt 0:00:05]} 30. Be3+ {[%emt 0:00:31]} Kc7 {[%emt 0:02:06]} 1/2-1/2